[Event "HUN-ch U8-U18 2019"]
[Site "Balatonlelle"]
[Date "2019.06.24"]
[Round "4.26"]
[White "Zsaki, Akos"]
[Black "Petyko, Martin"]
[Result "1-0"]
[ECO "C01"]
[WhiteElo "1432"]
[BlackElo "1248"]
[Annotator "NA"]
[PlyCount "63"]
[EventDate "2019.06.21"]
[EventType "swiss"]
[EventCountry "HUN"]
[SourceTitle "playchess.com"]
[Source "ChessBase"]
[SourceQuality "1"]
[TimeControl "40/5400+30:1800+30"]

1. e4 {[%emt 0:00:02]} e6 {[%emt 0:06:56]} 2. d4 {[%emt 0:00:22]} d5 3. exd5 exd5 {[%emt 0:01:07]} 4. Nf3 {[%emt 0:01:15]} Nf6 {[%emt 0:00:11]} 5. Bd3 {[%emt 0:00:51]} c5 {[%emt 0:00:34]} 6. c3 {[%emt 0:01:26]} Nc6 {[%emt 0:00:31]} 7. O-O {[%emt 0:00:43]} b6 {[%emt 0:00:23]} 8. Bf4 {[%emt 0:01:53]} Bg4 {[%emt 0:03:58]} 9. Bb5 {[%emt 0:02:50]} Bd7 {[%emt 0:01:26]} 10. Qe2+ {[%emt 0:03:02]} Be7 {[%emt 0:03:44]} 11. Ne5 {[%emt 0:02:01]} Nxe5 {[%emt 0:03:28]} 12. Bxe5 {[%emt 0:00:13]} O-O {[%emt 0:00:41]} 13. Bxd7 {[%emt 0:00:36]} Qxd7 {[%emt 0:00:08]} 14. Nd2 {[%emt 0:01:04]} Rfe8 {[%emt 0:00:18]} 15. Qd3 {[%emt 0:01:17]} Qc6 {[%emt 0:04:22]} 16. Rfe1 {[%emt 0:02:23]} Bd6 {[%emt 0:00:23]} 17. Bxf6 {[%emt 0:01:11]} Bxh2+ {[%emt 0:00:17]} 18. Kxh2 {[%emt 0:01:13]} Qxf6 {[%emt 0:00:11]} 19. Re2 {[%emt 0:00:51]} Rxe2 {[%emt 0:00:59]} 20. Qxe2 {[%emt 0:00:13]} cxd4 {[%emt 0:00:27]} 21. Re1 {[%emt 0:01:15]} h6 22. cxd4 {[%emt 0:00:57]} Qxd4 {[%emt 0:01:03]} 23. Nf3 {[%emt 0:00:25]} Qa4 {[%emt 0:01:03]} 24. b3 {[%emt 0:00:51]} Qc6 {[%emt 0:00:09]} 25. Qe7 {[%emt 0:00:57]} a5 {[%emt 0:01:51]} 26. Qxf7+ {[%emt 0:01:49]} Kxf7 {[%emt 0:00:23]} 27. Ne5+ {[%emt 0:00:05]} Kf6 {[%emt 0:00:03]} 28. Nxc6 Rc8 {[%emt 0:00:45]} 29. Nd4 {[%emt 0:00:35]} Rc5 {[%emt 0:01:03]} 30. Re6+ {[%emt 0:01:46]} Kf7 {[%emt 0:00:30]} 31. Rc6 {[%emt 0:01:07]} Rxc6 32. Nxc6 1-0

[Event "HUN-ch U8-U18 2019"]
[Site "Balatonlelle"]
[Date "2019.06.24"]
[Round "4.27"]
[White "Giang, Tran Nam"]
[Black "Matyassy, Lazar"]
[Result "1-0"]
[ECO "B42"]
[WhiteElo "2008"]
[BlackElo "1539"]
[Annotator "NA"]
[PlyCount "45"]
[EventDate "2019.06.21"]
[EventType "swiss"]
[EventCountry "HUN"]
[SourceTitle "playchess.com"]
[Source "ChessBase"]
[SourceQuality "1"]
[TimeControl "40/5400+30:1800+30"]

1. e4 {[%emt 0:00:01]} c5 {[%emt 0:00:11]} 2. Nf3 {[%emt 0:00:05]} e6 {[%emt 0:00:05]} 3. d4 {[%emt 0:00:09]} cxd4 {[%emt 0:00:06]} 4. Nxd4 {[%emt 0:00:04]} a6 {[%emt 0:00:08]} 5. Bd3 {[%emt 0:00:12]} Bc5 {[%emt 0:00:08]} 6. Nb3 {[%emt 0:02:30]} Ba7 {[%emt 0:01:17]} 7. O-O {[%emt 0:01:13]} Nc6 {[%emt 0:01:05]} 8. Nc3 {[%emt 0:03:17]} Nf6 {[%emt 0:01:54]} 9. Kh1 {[%emt 0:03:56]} O-O {[%emt 0:02:18]} 10. Bg5 {[%emt 0:03:21]} d6 {[%emt 0:07:38]} 11. f4 {[%emt 0:02:14]} b5 {[%emt 0:11:58]} 12. Qf3 {[%emt 0:03:56]} b4 {[%emt 0:07:23]} 13. Ne2 {[%emt 0:03:18]} e5 {[%emt 0:01:15]} 14. Qg3 {[%emt 0:08:45]} Nh5 {[%emt 0:09:26]} 15. Qh4 {[%emt 0:03:39]} f6 {[%emt 0:01:40]} 16. Bc4+ {[%emt 0:03:44]} Kh8 {[%emt 0:00:09]} 17. Qxh5 {[%emt 0:01:16]} fxg5 {[%emt 0:00:13]} 18. fxg5 {[%emt 0:00:45]} Bb7 {[%emt 0:02:27]} 19. Ng3 {[%emt 0:02:32]} Ne7 {[%emt 0:01:17]} 20. Rxf8+ {[%emt 0:02:36]} Qxf8 {[%emt 0:01:57]} 21. Rf1 {[%emt 0:01:00]} Qc8 {[%emt 0:00:30]} 22. Qf7 {[%emt 0:02:55]} Qd8 {[%emt 0:10:05]} 23. Nh5 {[%emt 0:01:00]} 1-0

[Event "HUN-ch U8-U18 2019"]
[Site "Balatonlelle"]
[Date "2019.06.24"]
[Round "4.28"]
[White "Csernyik, Mark"]
[Black "Lehocz, Jozsef Jr."]
[Result "1/2-1/2"]
[ECO "B01"]
[WhiteElo "1704"]
[BlackElo "1382"]
[Annotator "NA"]
[PlyCount "62"]
[EventDate "2019.06.21"]
[EventType "swiss"]
[EventCountry "HUN"]
[SourceTitle "playchess.com"]
[Source "ChessBase"]
[SourceQuality "1"]
[TimeControl "40/5400+30:1800+30"]

1. e4 {[%emt 0:00:12]} d5 {[%emt 0:00:30]} 2. exd5 {[%emt 0:00:34]} Qxd5 {[%emt 0:00:07]} 3. Nc3 {[%emt 0:00:13]} Qd6 {[%emt 0:00:08]} 4. d4 {[%emt 0:00:07]} Nf6 {[%emt 0:00:05]} 5. Nf3 {[%emt 0:00:23]} Bg4 {[%emt 0:00:07]} 6. h3 {[%emt 0:00:17]} Bxf3 {[%emt 0:00:06]} 7. Qxf3 {[%emt 0:00:13]} c6 {[%emt 0:00:07]} 8. Be3 {[%emt 0:00:20]} Nbd7 {[%emt 0:00:12]} 9. O-O-O {[%emt 0:00:55]} Nb6 {[%emt 0:00:18]} 10. Bf4 {[%emt 0:04:27]} Qd7 {[%emt 0:01:48]} 11. Ne4 {[%emt 0:02:13]} Nxe4 {[%emt 0:00:34]} 12. Qxe4 {[%emt 0:00:09]} e6 {[%emt 0:01:51]} 13. Be5 {[%emt 0:03:03]} Qd5 {[%emt 0:05:28]} 14. Qxd5 {[%emt 0:00:18]} Nxd5 {[%emt 0:00:10]} 15. g4 {[%emt 0:01:20]} Nf6 {[%emt 0:04:49]} 16. Bd3 {[%emt 0:01:07]} h6 {[%emt 0:00:47]} 17. f3 {[%emt 0:00:32]} Rd8 {[%emt 0:03:22]} 18. h4 {[%emt 0:02:02]} Bd6 {[%emt 0:00:21]} 19. g5 {[%emt 0:01:09]} Bxe5 {[%emt 0:00:08]} 20. dxe5 {[%emt 0:00:16]} Nd7 {[%emt 0:01:04]} 21. f4 {[%emt 0:01:16]} Ke7 {[%emt 0:00:34]} 22. Rdg1 {[%emt 0:00:55]} Nc5 {[%emt 0:01:16]} 23. Rg3 {[%emt 0:00:51]} hxg5 {[%emt 0:00:40]} 24. fxg5 {[%emt 0:02:50]} Nxd3+ {[%emt 0:00:54]} 25. cxd3 {[%emt 0:00:13]} Rd4 {[%emt 0:00:17]} 26. h5 {[%emt 0:01:57]} Rd5 {[%emt 0:05:37]} 27. Re3 {[%emt 0:01:17]} f6 {[%emt 0:00:33]} 28. exf6+ {[%emt 0:12:55]} gxf6 {[%emt 0:00:12]} 29. gxf6+ {[%emt 0:00:42]} Kxf6 {[%emt 0:00:08]} 30. Reh3 {[%emt 0:01:17]} Rh6 {[%emt 0:00:34]} 31. Kd2 {[%emt 0:00:25]} Re5 {[%emt 0:01:08]} 1/2-1/2

[Event "HUN-ch U8-U18 2019"]
[Site "Balatonlelle"]
[Date "2019.06.24"]
[Round "4.29"]
[White "Pasti, Zsombor"]
[Black "Panda, Barnabas"]
[Result "0-1"]
[ECO "B21"]
[WhiteElo "1641"]
[BlackElo "1722"]
[Annotator "NA"]
[PlyCount "72"]
[EventDate "2019.06.21"]
[EventType "swiss"]
[EventCountry "HUN"]
[SourceTitle "playchess.com"]
[Source "ChessBase"]
[SourceQuality "1"]
[TimeControl "40/5400+30:1800+30"]

1. e4 {[%emt 0:00:01]} c5 {[%emt 0:00:13]} 2. d4 {[%emt 0:00:05]} cxd4 {[%emt 0:00:22]} 3. c3 {[%emt 0:00:04]} dxc3 {[%emt 0:00:32]} 4. Nxc3 {[%emt 0:00:06]} Nc6 {[%emt 0:01:34]} 5. Nf3 {[%emt 0:00:07]} d6 {[%emt 0:01:01]} 6. Bc4 {[%emt 0:00:18]} e6 {[%emt 0:01:51]} 7. O-O {[%emt 0:00:22]} a6 {[%emt 0:00:27]} 8. a3 {[%emt 0:00:15]} Be7 {[%emt 0:01:25]} 9. Qe2 {[%emt 0:01:38]} b5 {[%emt 0:00:40]} 10. Ba2 {[%emt 0:03:07]} Ra7 {[%emt 0:04:16]} 11. b4 {[%emt 0:02:01]} Nf6 {[%emt 0:01:59]} 12. Rd1 {[%emt 0:01:50]} Rd7 {[%emt 0:01:01]} 13. Ng5 {[%emt 0:01:34]} Rc7 {[%emt 0:06:41]} 14. Be3 {[%emt 0:01:26]} Rb7 {[%emt 0:11:50]} 15. Qf3 {[%emt 0:01:10]} Ne5 {[%emt 0:02:07]} 16. Qe2 {[%emt 0:00:16]} h6 {[%emt 0:03:11]} 17. Nf3 {[%emt 0:00:53]} Nxf3+ {[%emt 0:01:14]} 18. Qxf3 {[%emt 0:00:09]} Rd7 {[%emt 0:00:16]} 19. a4 {[%emt 0:00:20]} bxa4 {[%emt 0:01:24]} 20. Nxa4 {[%emt 0:00:11]} Bb7 {[%emt 0:00:44]} 21. Qg3 {[%emt 0:03:31]} Nxe4 {[%emt 0:00:59]} 22. Qxg7 {[%emt 0:01:14]} Bf6 {[%emt 0:00:20]} 23. Qg4 {[%emt 0:00:04]} Bxa1 {[%emt 0:00:34]} 24. Rxa1 {[%emt 0:00:44]} Nf6 {[%emt 0:01:52]} 25. Qd4 {[%emt 0:02:44]} Rg8 {[%emt 0:04:17]} 26. g3 {[%emt 0:00:15]} Ng4 {[%emt 0:03:14]} 27. Bd2 {[%emt 0:03:46]} Ne5 {[%emt 0:02:38]} 28. Qe3 {[%emt 0:01:07]} Nf3+ {[%emt 0:00:21]} 29. Kf1 {[%emt 0:00:07]} Nxh2+ {[%emt 0:00:21]} 30. Kg1 {[%emt 0:00:06]} Nf3+ {[%emt 0:00:18]} 31. Kf1 {[%emt 0:00:08]} Nxd2+ {[%emt 0:00:32]} 32. Qxd2 {[%emt 0:00:10]} Qf6 {[%emt 0:00:15]} 33. Rd1 {[%emt 0:00:31]} Qf3 {[%emt 0:01:56]} 34. Rc1 {[%emt 0:02:28]} Rxg3 {[%emt 0:02:18]} 35. Bd5 {[%emt 0:02:52]} Bxd5 {[%emt 0:01:22]} 36. Qxh6 {[%emt 0:00:34]} Rg1+ {[%emt 0:00:12]} 0-1

[Event "HUN-ch U8-U18 2019"]
[Site "Balatonlelle"]
[Date "2019.06.24"]
[Round "4.30"]
[White "Csontos, Aron"]
[Black "Foldes, Marton Gabor"]
[Result "0-1"]
[ECO "B22"]
[WhiteElo "1376"]
[BlackElo "1653"]
[Annotator "NA"]
[PlyCount "80"]
[EventDate "2019.06.21"]
[EventType "swiss"]
[EventCountry "HUN"]
[SourceTitle "playchess.com"]
[Source "ChessBase"]
[SourceQuality "1"]
[TimeControl "40/5400+30:1800+30"]

1. e4 {[%emt 0:00:02]} c5 {[%emt 0:00:04]} 2. c3 {[%emt 0:00:06]} Nf6 {[%emt 0:00:08]} 3. e5 {[%emt 0:00:05]} Nd5 {[%emt 0:00:05]} 4. Bc4 {[%emt 0:00:04]} Nb6 {[%emt 0:00:24]} 5. Bb3 {[%emt 0:00:07]} d5 {[%emt 0:00:55]} 6. d4 {[%emt 0:10:01]} cxd4 {[%emt 0:01:06]} 7. cxd4 {[%emt 0:00:08]} Bf5 {[%emt 0:00:26]} 8. Nf3 {[%emt 0:01:52]} e6 {[%emt 0:00:24]} 9. Nc3 {[%emt 0:01:07]} Nc6 {[%emt 0:01:32]} 10. O-O {[%emt 0:01:03]} Be7 {[%emt 0:01:03]} 11. Re1 {[%emt 0:02:37]} O-O {[%emt 0:01:08]} 12. Bf4 {[%emt 0:09:34]} Rc8 {[%emt 0:03:39]} 13. Bc2 {[%emt 0:01:47]} Bxc2 {[%emt 0:02:32]} 14. Qxc2 {[%emt 0:00:07]} Nb4 {[%emt 0:00:37]} 15. Qd1 {[%emt 0:01:52]} Nc4 {[%emt 0:00:30]} 16. b3 {[%emt 0:00:19]} Nb2 {[%emt 0:00:57]} 17. Qb1 {[%emt 0:01:14]} N2d3 {[%emt 0:00:53]} 18. Bd2 {[%emt 0:01:20]} Nxe1 {[%emt 0:00:33]} 19. Bxe1 {[%emt 0:00:16]} g5 {[%emt 0:04:28]} 20. h3 {[%emt 0:01:48]} Kh8 {[%emt 0:06:48]} 21. a3 {[%emt 0:02:09]} Nc6 {[%emt 0:01:43]} 22. Bd2 {[%emt 0:02:36]} Rg8 {[%emt 0:03:07]} 23. g4 {[%emt 0:01:28]} Qb6 {[%emt 0:03:33]} 24. Qc1 {[%emt 0:00:45]} h6 {[%emt 0:02:55]} 25. b4 {[%emt 0:01:09]} Nxd4 {[%emt 0:01:12]} 26. Be3 {[%emt 0:00:10]} Nxf3+ {[%emt 0:00:20]} 27. Kg2 {[%emt 0:00:38]} Nh4+ {[%emt 0:00:36]} 28. Kg1 {[%emt 0:00:19]} d4 {[%emt 0:00:14]} 29. Bd2 {[%emt 0:00:49]} Nf3+ {[%emt 0:00:37]} 30. Kg2 {[%emt 0:00:10]} Nxd2 {[%emt 0:00:13]} 31. Qxd2 {[%emt 0:00:12]} dxc3 {[%emt 0:00:14]} 32. Qd7 {[%emt 0:00:29]} Qc6+ {[%emt 0:00:11]} 33. Qxc6 {[%emt 0:00:07]} Rxc6 {[%emt 0:00:04]} 34. Rd1 {[%emt 0:00:22]} c2 {[%emt 0:00:07]} 35. Rd7 {[%emt 0:00:26]} c1=Q {[%emt 0:00:22]} 36. Rxe7 {[%emt 0:00:10]} Qf4 {[%emt 0:00:21]} 37. b5 {[%emt 0:00:15]} Rc2 {[%emt 0:00:09]} 38. Rxf7 {[%emt 0:00:19]} Qxf7 {[%emt 0:00:09]} 39. Kh1 {[%emt 0:00:17]} Qxf2 {[%emt 0:00:16]} 40. h4 {[%emt 0:00:00]} Rc1# {[%emt 0:00:00]} 0-1

[Event "HUN-ch U8-U18 2019"]
[Site "Balatonlelle"]
[Date "2019.06.24"]
[Round "4.31"]
[White "Nagy, Levente"]
[Black "Karacsonyi, Bank"]
[Result "0-1"]
[ECO "B34"]
[WhiteElo "2092"]
[BlackElo "1529"]
[Annotator "NA"]
[PlyCount "80"]
[EventDate "2019.06.21"]
[EventType "swiss"]
[EventCountry "HUN"]
[SourceTitle "playchess.com"]
[Source "ChessBase"]
[SourceQuality "1"]
[TimeControl "40/5400+30:1800+30"]

1. e4 {[%emt 0:00:06]} c5 {[%emt 0:00:05]} 2. Nf3 {[%emt 0:00:36]} Nc6 {[%emt 0:00:13]} 3. d4 {[%emt 0:00:33]} cxd4 {[%emt 0:00:05]} 4. Nxd4 {[%emt 0:00:36]} Nf6 {[%emt 0:00:06]} 5. Nc3 {[%emt 0:00:46]} e5 {[%emt 0:00:06]} 6. Nf3 {[%emt 0:00:48]} Bb4 {[%emt 0:00:08]} 7. Bd3 {[%emt 0:01:03]} d5 {[%emt 0:00:12]} 8. exd5 {[%emt 0:00:37]} Nxd5 {[%emt 0:00:19]} 9. Bd2 {[%emt 0:00:30]} Nxc3 {[%emt 0:00:12]} 10. Bxc3 {[%emt 0:00:33]} Bxc3+ {[%emt 0:00:07]} 11. bxc3 {[%emt 0:00:43]} O-O {[%emt 0:00:09]} 12. O-O {[%emt 0:01:09]} Be6 {[%emt 0:00:55]} 13. Re1 {[%emt 0:01:29]} f6 {[%emt 0:00:10]} 14. Qe2 {[%emt 0:01:52]} Re8 {[%emt 0:01:31]} 15. Rad1 {[%emt 0:01:07]} Qa5 {[%emt 0:00:57]} 16. Rb1 {[%emt 0:02:44]} Re7 {[%emt 0:03:06]} 17. Be4 {[%emt 0:03:05]} Qxc3 {[%emt 0:02:09]} 18. Ra1 {[%emt 0:05:57]} Bg4 {[%emt 0:00:57]} 19. Red1 {[%emt 0:04:08]} Nd4 {[%emt 0:00:40]} 20. Qe3 {[%emt 0:03:45]} Bxf3 {[%emt 0:06:18]} 21. gxf3 {[%emt 0:02:28]} Qc4 {[%emt 0:04:22]} 22. c3 {[%emt 0:04:59]} Ne2+ {[%emt 0:00:17]} 23. Kh1 {[%emt 0:02:23]} Nf4 {[%emt 0:00:44]} 24. Rd2 {[%emt 0:06:29]} Rc8 {[%emt 0:01:38]} 25. Rc1 {[%emt 0:03:33]} b6 {[%emt 0:01:06]} 26. Bc2 {[%emt 0:02:07]} Kh8 {[%emt 0:03:14]} 27. Bb3 {[%emt 0:02:22]} Qc7 {[%emt 0:01:38]} 28. Qe4 {[%emt 0:01:52]} Rf8 {[%emt 0:00:39]} 29. Rcd1 {[%emt 0:02:30]} f5 {[%emt 0:01:39]} 30. Qxf5 {[%emt 0:01:57]} Rc8 {[%emt 0:05:58]} 31. h4 {[%emt 0:03:30]} Qxc3 {[%emt 0:01:08]} 32. Rd8+ {[%emt 0:01:33]} Re8 {[%emt 0:00:21]} 33. Rxe8+ {[%emt 0:00:52]} Rxe8 {[%emt 0:00:07]} 34. Qe4 {[%emt 0:00:55]} Qc5 {[%emt 0:01:12]} 35. Qe3 {[%emt 0:02:14]} Qe7 {[%emt 0:00:42]} 36. Kg1 {[%emt 0:02:49]} Qxh4 {[%emt 0:00:35]} 37. Rd7 {[%emt 0:02:01]} Qh3 {[%emt 0:01:15]} 38. Qxf4 {[%emt 0:02:39]} exf4 {[%emt 0:00:19]} 39. Rd1 {[%emt 0:00:08]} Qxf3 {[%emt 0:00:10]} 40. Ba4 {[%emt 0:00:00]} g5 {[%emt 0:00:00]} 0-1

[Event "HUN-ch U8-U18 2019"]
[Site "Balatonlelle"]
[Date "2019.06.24"]
[Round "4.32"]
[White "Megyeri, Martin"]
[Black "Biro, Daniel"]
[Result "1/2-1/2"]
[ECO "C18"]
[WhiteElo "1520"]
[BlackElo "1343"]
[Annotator "NA"]
[PlyCount "51"]
[EventDate "2019.06.21"]
[EventType "swiss"]
[EventCountry "HUN"]
[SourceTitle "playchess.com"]
[Source "ChessBase"]
[SourceQuality "1"]
[TimeControl "40/5400+30:1800+30"]

1. e4 {[%emt 0:00:03]} e6 {[%emt 0:00:03]} 2. d4 {[%emt 0:00:08]} d5 {[%emt 0:00:04]} 3. Nc3 {[%emt 0:00:07]} Bb4 {[%emt 0:00:25]} 4. e5 {[%emt 0:00:15]} c5 {[%emt 0:00:47]} 5. a3 {[%emt 0:00:12]} Bxc3+ {[%emt 0:00:33]} 6. bxc3 {[%emt 0:00:14]} Qa5 {[%emt 0:01:17]} 7. Bd2 {[%emt 0:00:51]} Nc6 {[%emt 0:02:14]} 8. Qg4 {[%emt 0:03:20]} g6 {[%emt 0:03:49]} 9. Ne2 {[%emt 0:02:25]} Nge7 {[%emt 0:00:46]} 10. g3 {[%emt 0:01:23]} Nf5 {[%emt 0:04:25]} 11. Bg2 {[%emt 0:01:59]} Qa4 {[%emt 0:02:48]} 12. Rc1 {[%emt 0:06:47]} cxd4 {[%emt 0:04:08]} 13. Qf4 {[%emt 0:03:37]} Qxa3 {[%emt 0:07:30]} 14. cxd4 {[%emt 0:02:35]} Qa4 {[%emt 0:07:12]} 15. c3 {[%emt 0:02:08]} Qc4 {[%emt 0:01:59]} 16. g4 {[%emt 0:02:28]} Nfe7 {[%emt 0:03:37]} 17. Qf6 {[%emt 0:01:26]} Rg8 {[%emt 0:01:53]} 18. Qf3 {[%emt 0:03:40]} a5 {[%emt 0:02:48]} 19. O-O {[%emt 0:01:23]} a4 {[%emt 0:03:37]} 20. Ra1 {[%emt 0:02:10]} Qb3 {[%emt 0:02:17]} 21. Rfb1 {[%emt 0:06:58]} Qc2 {[%emt 0:01:38]} 22. Bg5 {[%emt 0:02:01]} a3 {[%emt 0:02:31]} 23. Rc1 {[%emt 0:03:10]} Qb2 {[%emt 0:01:37]} 24. Rcb1 {[%emt 0:02:35]} Qc2 {[%emt 0:00:18]} 25. Rc1 {[%emt 0:01:07]} Qb2 {[%emt 0:00:19]} 26. Rcb1 {[%emt 0:01:09]} 1/2-1/2

[Event "HUN-ch U8-U18 2019"]
[Site "Balatonlelle"]
[Date "2019.06.24"]
[Round "4.34"]
[White "Porpaczy, Marton"]
[Black "Vadkerti, Vince"]
[Result "0-1"]
[ECO "B76"]
[WhiteElo "1058"]
[BlackElo "1558"]
[Annotator "NA"]
[PlyCount "152"]
[EventDate "2019.06.21"]
[EventType "swiss"]
[EventCountry "HUN"]
[SourceTitle "playchess.com"]
[Source "ChessBase"]
[SourceQuality "1"]
[TimeControl "40/5400+30:1800+30"]

1. e4 {[%emt 0:00:03]} c5 {[%emt 0:00:08]} 2. Nf3 {[%emt 0:00:06]} g6 {[%emt 0:00:12]} 3. d4 {[%emt 0:00:23]} cxd4 {[%emt 0:00:10]} 4. Nxd4 {[%emt 0:00:17]} Nc6 {[%emt 0:00:12]} 5. Nc3 {[%emt 0:00:30]} Bg7 {[%emt 0:00:14]} 6. Be3 {[%emt 0:00:46]} Nf6 {[%emt 0:00:23]} 7. f3 {[%emt 0:00:14]} O-O {[%emt 0:00:44]} 8. Qd2 {[%emt 0:00:12]} d6 {[%emt 0:01:34]} 9. O-O-O {[%emt 0:02:40]} Bd7 {[%emt 0:02:28]} 10. g4 {[%emt 0:07:36]} Nxd4 {[%emt 0:03:32]} 11. Bxd4 {[%emt 0:00:33]} Qa5 {[%emt 0:02:52]} 12. h4 {[%emt 0:12:03]} b5 {[%emt 0:02:31]} 13. Kb1 {[%emt 0:03:41]} b4 {[%emt 0:02:11]} 14. Ne2 {[%emt 0:02:04]} Be6 {[%emt 0:02:27]} 15. b3 {[%emt 0:02:28]} Qa3 {[%emt 0:06:29]} 16. Bb2 {[%emt 0:03:51]} Nxe4 {[%emt 0:10:14]} 17. Bxa3 {[%emt 0:01:00]} Nxd2+ {[%emt 0:00:10]} 18. Rxd2 {[%emt 0:00:21]} bxa3 {[%emt 0:00:10]} 19. Nd4 {[%emt 0:08:02]} Bxd4 {[%emt 0:02:35]} 20. Rxd4 {[%emt 0:00:09]} Bd7 {[%emt 0:00:21]} 21. Bc4 {[%emt 0:00:42]} a5 {[%emt 0:02:01]} 22. Re1 {[%emt 0:02:29]} Rae8 {[%emt 0:05:41]} 23. Bf1 {[%emt 0:03:22]} Bc6 {[%emt 0:03:42]} 24. Bg2 {[%emt 0:00:46]} f5 {[%emt 0:03:38]} 25. g5 {[%emt 0:03:43]} Kf7 {[%emt 0:03:52]} 26. Rc4 {[%emt 0:02:46]} Rc8 {[%emt 0:02:48]} 27. Rc3 {[%emt 0:02:02]} Bb7 {[%emt 0:09:41]} 28. Rce3 {[%emt 0:00:31]} e5 {[%emt 0:01:17]} 29. Rd3 {[%emt 0:02:25]} Ke7 {[%emt 0:01:10]} 30. Bh3 {[%emt 0:00:46]} Rc6 {[%emt 0:02:04]} 31. f4 {[%emt 0:01:24]} e4 {[%emt 0:00:38]} 32. Rd2 {[%emt 0:00:52]} Ba6 {[%emt 0:05:21]} 33. Bf1 {[%emt 0:00:29]} Bxf1 {[%emt 0:00:57]} 34. Rxf1 {[%emt 0:00:07]} Ke6 {[%emt 0:04:50]} 35. c4 {[%emt 0:00:24]} Rb8 {[%emt 0:01:23]} 36. Kc2 {[%emt 0:00:20]} a4 {[%emt 0:00:57]} 37. Re1 {[%emt 0:01:48]} axb3+ {[%emt 0:01:05]} 38. axb3 {[%emt 0:00:15]} Rcb6 {[%emt 0:01:36]} 39. Red1 {[%emt 0:00:50]} a2 {[%emt 0:01:43]} 40. Ra1 {[%emt 0:00:00]} Rxb3 {[%emt 0:00:00]} 41. Rxa2 {[%emt 0:00:31]} R3b7 {[%emt 0:04:08]} 42. Ra6 {[%emt 0:01:35]} Rb2+ {[%emt 0:00:34]} 43. Kd1 {[%emt 0:00:21]} Rxd2+ {[%emt 0:00:33]} 44. Kxd2 {[%emt 0:00:06]} Rd8 {[%emt 0:01:28]} 45. Rb6 {[%emt 0:00:28]} Rd7 {[%emt 0:01:18]} 46. Ke3 {[%emt 0:00:27]} Rc7 {[%emt 0:01:30]} 47. Kd4 {[%emt 0:01:05]} Ra7 {[%emt 0:01:11]} 48. Kc3 {[%emt 0:01:28]} Ra3+ {[%emt 0:02:20]} 49. Kd2 {[%emt 0:01:36]} Ra2+ {[%emt 0:01:40]} 50. Ke3 {[%emt 0:01:30]} Rc2 {[%emt 0:01:26]} 51. Kd4 {[%emt 0:00:33]} Rd2+ {[%emt 0:01:26]} 52. Ke3 {[%emt 0:00:10]} Rd3+ {[%emt 0:00:14]} 53. Ke2 {[%emt 0:00:38]} Rc3 {[%emt 0:00:40]} 54. Rb7 {[%emt 0:00:39]} Rxc4 {[%emt 0:01:26]} 55. Rxh7 {[%emt 0:01:29]} Rc2+ {[%emt 0:01:10]} 56. Kd1 {[%emt 0:00:56]} Rh2 {[%emt 0:00:24]} 57. Rg7 {[%emt 0:00:41]} Rxh4 {[%emt 0:00:30]} 58. Rxg6+ {[%emt 0:00:09]} Ke7 {[%emt 0:02:50]} 59. Rg7+ {[%emt 0:00:33]} Ke6 {[%emt 0:01:29]} 60. Rg6+ {[%emt 0:00:23]} Kd5 {[%emt 0:00:39]} 61. Rg8 {[%emt 0:01:32]} Rxf4 {[%emt 0:00:57]} 62. g6 {[%emt 0:00:22]} Rg4 {[%emt 0:00:43]} 63. g7 {[%emt 0:00:13]} f4 {[%emt 0:01:27]} 64. Ke1 {[%emt 0:00:20]} f3 {[%emt 0:00:45]} 65. Kf2 {[%emt 0:00:34]} Rg2+ {[%emt 0:01:15]} 66. Kf1 {[%emt 0:00:08]} Kd4 {[%emt 0:05:10]} 67. Rd8 {[%emt 0:00:59]} Rxg7 {[%emt 0:00:21]} 68. Rxd6+ {[%emt 0:00:10]} Ke5 {[%emt 0:01:17]} 69. Rb6 {[%emt 0:00:33]} e3 {[%emt 0:01:18]} 70. Rb5+ {[%emt 0:00:05]} Kf4 {[%emt 0:01:18]} 71. Rb4+ {[%emt 0:00:15]} Kg3 {[%emt 0:00:31]} 72. Re4 {[%emt 0:00:42]} e2+ {[%emt 0:00:57]} 73. Ke1 {[%emt 0:00:22]} Rd7 {[%emt 0:00:53]} 74. Rd4 {[%emt 0:00:32]} f2+ {[%emt 0:00:07]} 75. Kxe2 {[%emt 0:00:07]} f1=Q+ {[%emt 0:00:19]} 76. Kxf1 {[%emt 0:00:10]} Rxd4 {[%emt 0:00:13]} 0-1

[Event "HUN-ch U8-U18 2019"]
[Site "Balatonlelle"]
[Date "2019.06.24"]
[Round "4.35"]
[White "Berla, Zoltan Mate"]
[Black "Havasi, Gergely Bulcsu"]
[Result "0-1"]
[ECO "B12"]
[WhiteElo "1098"]
[BlackElo "1486"]
[Annotator "NA"]
[PlyCount "82"]
[EventDate "2019.06.21"]
[EventType "swiss"]
[EventCountry "HUN"]
[SourceTitle "playchess.com"]
[Source "ChessBase"]
[SourceQuality "1"]
[TimeControl "40/5400+30:1800+30"]

1. e4 {[%emt 0:00:03]} c6 {[%emt 0:00:06]} 2. d4 {[%emt 0:00:15]} d6 {[%emt 0:00:18]} 3. Nf3 {[%emt 0:00:24]} Bg4 {[%emt 0:00:58]} 4. Be2 {[%emt 0:12:59]} Nf6 {[%emt 0:01:23]} 5. Nc3 {[%emt 0:01:54]} Nbd7 {[%emt 0:01:33]} 6. h3 {[%emt 0:04:40]} Bxf3 {[%emt 0:00:49]} 7. Bxf3 {[%emt 0:00:09]} h6 {[%emt 0:01:40]} 8. Be3 {[%emt 0:01:50]} e5 {[%emt 0:01:43]} 9. Qd2 {[%emt 0:02:51]} Be7 {[%emt 0:01:25]} 10. O-O-O {[%emt 0:01:18]} exd4 {[%emt 0:02:06]} 11. Bxd4 {[%emt 0:00:35]} c5 {[%emt 0:00:56]} 12. Rhe1 {[%emt 0:04:48]} cxd4 {[%emt 0:03:35]} 13. Qxd4 {[%emt 0:00:02]} Qb6 {[%emt 0:00:50]} 14. Qd2 {[%emt 0:00:23]} Ne5 {[%emt 0:01:54]} 15. Be2 {[%emt 0:00:33]} Rc8 {[%emt 0:00:57]} 16. Bb5+ {[%emt 0:01:01]} Nfd7 {[%emt 0:02:53]} 17. Bxd7+ {[%emt 0:02:37]} Nxd7 {[%emt 0:00:18]} 18. Nd5 {[%emt 0:00:21]} Qd8 {[%emt 0:01:20]} 19. f4 {[%emt 0:00:59]} O-O {[%emt 0:00:34]} 20. Nxe7+ {[%emt 0:05:16]} Qxe7 {[%emt 0:00:26]} 21. g4 {[%emt 0:01:29]} Nf6 {[%emt 0:01:15]} 22. e5 {[%emt 0:00:47]} dxe5 {[%emt 0:00:09]} 23. Rxe5 {[%emt 0:01:49]} Qc7 {[%emt 0:00:20]} 24. Rg1 {[%emt 0:22:03]} Rfd8 {[%emt 0:02:32]} 25. Qe2 {[%emt 0:00:51]} Qc4 {[%emt 0:00:32]} 26. Qxc4 {[%emt 0:01:45]} Rxc4 {[%emt 0:00:04]} 27. Rf1 {[%emt 0:00:34]} Rd5 {[%emt 0:00:42]} 28. Re7 {[%emt 0:00:14]} Rdc5 {[%emt 0:00:13]} 29. c3 {[%emt 0:00:19]} Rc7 {[%emt 0:01:26]} 30. Re5 {[%emt 0:00:22]} a6 {[%emt 0:01:40]} 31. Kc2 {[%emt 0:03:42]} R4c5 {[%emt 0:02:53]} 32. Re3 {[%emt 0:00:42]} Nd5 {[%emt 0:00:20]} 33. Rd3 {[%emt 0:00:19]} Nb4+ {[%emt 0:00:09]} 34. Kd2 {[%emt 0:01:42]} Nxd3 {[%emt 0:00:10]} 35. Kxd3 {[%emt 0:00:08]} Rd7+ {[%emt 0:00:13]} 36. Kc2 {[%emt 0:00:07]} Rcd5 {[%emt 0:00:15]} 37. Rf2 {[%emt 0:00:27]} b5 38. b3 {[%emt 0:00:13]} a5 {[%emt 0:00:47]} 39. a3 {[%emt 0:00:38]} Re7 {[%emt 0:00:30]} 40. f5 {[%emt 0:00:00]} Re3 {[%emt 0:00:00]} 41. Rh2 {[%emt 0:00:27]} Rdd3 {[%emt 0:00:39]} 0-1